fUSD/lending_fUSD_20241221
["ID","MTS","AMOUNT","RATE_DAILY","PERIOD"]
[346248774,1734815448771,-500.0,0.00019853,2]
[346248775,1734815448781,-500.0,0.00019853,2]
[346248776,1734815448791,-500.0,0.00019853,2]
[346248777,1734815448800,-500.0,0.00019853,2]
[346248778,1734815448809,-4452.57,0.00019853,2]
[346248779,1734815448818,-500.0,0.00019853,2]
[346248780,1734815448828,-311.63228102,0.00019853,2]
[346248781,1734815448837,-500.0,0.00019853,2]
[346248782,1734815448847,-500.0,0.00019853,2]
[346248783,1734815448856,-500.0,0.00019853,2]
[346248784,1734815448866,-529.03,0.00019853,2]
[346248785,1734815448875,-1673.93,0.00019853,2]
[346248786,1734815448887,-728.84,0.00019853,2]
[346248787,1734815448896,-500.0,0.00019853,2]
[346248788,1734815448905,-500.0,0.00019853,2]
[346248789,1734815448915,-500.0,0.00019853,2]
[346248790,1734815448925,-538.36,0.00019853,2]
[346248791,1734815448934,-500.0,0.00019853,2]
[346248792,1734815448943,-500.0,0.00019853,2]
[346248793,1734815448953,-1821.45,0.00019853,2]
[346248794,1734815448964,-500.0,0.00019853,2]
[346248795,1734815448974,-500.0,0.00019853,2]
[346248796,1734815448983,-500.0,0.00019853,2]
[346248797,1734815448992,-500.0,0.00019853,2]
[346248798,1734815449002,-575.65,0.00019853,2]
[346248799,1734815449011,-500.0,0.00019853,2]
[346248800,1734815449023,-576.22,0.00019853,2]
[346248801,1734815449033,-500.0,0.00019853,2]
[346248802,1734815449042,-500.0,0.00019853,2]
[346248803,1734815449052,-500.0,0.00019853,2]
[346248804,1734815449061,-500.0,0.00019853,2]
[346248805,1734815449071,-500.0,0.00019853,2]
[346248806,1734815449080,-500.0,0.00019853,2]
[346248807,1734815449089,-736.45,0.00019853,2]
[346248808,1734815449098,-500.0,0.00019853,2]
[346248809,1734815449107,-500.0,0.00019853,2]
[346248810,1734815449116,-500.0,0.00019853,2]
[346248811,1734815449126,-650.66,0.00019853,2]
[346248812,1734815449135,-500.0,0.00019853,2]
[346248813,1734815449145,-633.85482483,0.00019854,2]
[346248814,1734815449154,-332.07310406,0.00019854,2]
[346248815,1734815449163,-500.0,0.00019854,2]
[346248816,1734815449172,-322.22752801,0.00019854,2]
[346248817,1734815449181,-500.0,0.00019854,2]
[346248818,1734815449191,-500.0,0.00019854,2]
[346248819,1734815449201,-500.0,0.00019854,2]
[346248820,1734815449210,-500.0,0.00019854,2]
[346248821,1734815449219,-500.0,0.00019854,2]
[346248822,1734815449228,-272.63950012,0.00019854,2]
[346248823,1734815449237,-500.0,0.00019854,2]
[346248824,1734815449247,-500.0,0.00019854,2]
[346248825,1734815449256,-500.0,0.00019854,2]
[346248826,1734815449266,-500.0,0.00019854,2]
[346248827,1734815449275,-500.0,0.00019854,2]
[346248828,1734815449284,-573.24,0.00019854,2]
[346248829,1734815449293,-500.0,0.00019854,2]
[346248830,1734815449303,-500.0,0.00019854,2]
[346248831,1734815449312,-500.0,0.00019854,2]
[346248832,1734815449321,-500.0,0.00019854,2]
[346248833,1734815449330,-500.0,0.00019854,2]
[346248834,1734815449340,-500.0,0.00019854,2]
[346248835,1734815449349,-500.0,0.00019854,2]
[346248836,1734815449358,-500.0,0.00019854,2]
[346248837,1734815449368,-500.0,0.00019854,2]
[346248838,1734815449377,-520.00755075,0.00019854,2]
[346248839,1734815449386,-500.0,0.00019854,2]
[346248840,1734815449396,-500.0,0.00019854,2]
[346248841,1734815449405,-500.0,0.00019854,2]
[346248842,1734815449414,-500.0,0.00019854,2]
[346248843,1734815449423,-500.0,0.00019854,2]
[346248844,1734815449433,-500.0,0.00019854,2]
[346248845,1734815449442,-500.0,0.00019854,2]
[346248846,1734815449451,-500.0,0.00019854,2]
[346248847,1734815449461,-500.0,0.00019854,2]
[346248848,1734815449470,-500.0,0.00019854,2]
[346248849,1734815449479,-742.95,0.00019854,2]
[346248850,1734815449488,-500.0,0.00019854,2]
[346248851,1734815449498,-167.39227212,0.00019854,2]
[346248852,1734815449507,-500.0,0.00019854,2]
[346248853,1734815449516,-500.0,0.00019854,2]
[346248854,1734815449526,-500.0,0.00019854,2]
[346248855,1734815449535,-500.0,0.00019854,2]
[346248856,1734815449545,-500.0,0.00019854,2]
[346248857,1734815449554,-500.0,0.00019854,2]
[346248858,1734815449563,-500.0,0.00019854,2]
[346248859,1734815449572,-500.0,0.00019854,2]
[346248860,1734815449582,-500.0,0.00019854,2]
[346248861,1734815449591,-500.0,0.00019854,2]
[346248862,1734815449601,-546.46,0.00019854,2]
[346248863,1734815449611,-500.0,0.00019854,2]
[346248864,1734815449620,-500.0,0.00019854,2]
[346248865,1734815449630,-500.0,0.00019854,2]
[346248866,1734815449639,-500.0,0.00019854,2]
[346248867,1734815449647,-500.0,0.00019854,2]
[346248868,1734815449657,-500.0,0.00019854,2]
[346248869,1734815449667,-500.0,0.00019854,2]
[346248870,1734815449676,-500.0,0.00019854,2]
[346248871,1734815449685,-500.0,0.00019854,2]
[346248872,1734815449695,-500.0,0.00019854,2]
[346248873,1734815449705,-500.0,0.00019854,2]
[346248874,1734815449715,-500.0,0.00019854,2]
[346248875,1734815449724,-500.0,0.00019854,2]
[346248876,1734815449733,-500.0,0.00019854,2]
[346248877,1734815449743,-500.0,0.00019854,2]
[346248878,1734815449753,-500.0,0.00019854,2]
[346248879,1734815449762,-500.0,0.00019854,2]
[346248880,1734815449771,-500.0,0.00019854,2]
[346248881,1734815449781,-500.0,0.00019854,2]
[346248882,1734815449790,-500.0,0.00019854,2]
[346248883,1734815449799,-500.0,0.00019854,2]
[346248884,1734815449808,-500.0,0.00019854,2]
[346248885,1734815449818,-500.0,0.00019854,2]
[346248886,1734815449828,-500.0,0.00019854,2]
[346248887,1734815449839,-500.0,0.00019854,2]
[346248888,1734815449848,-500.0,0.00019854,2]
[346248889,1734815449857,-500.0,0.00019854,2]
[346248890,1734815449867,-390.39,0.00019854,2]
[346248891,1734815449877,-500.0,0.00019854,2]
[346248892,1734815449890,-500.0,0.00019854,2]
[346248893,1734815449900,-500.0,0.00019854,2]
[346248894,1734815449909,-500.0,0.00019854,2]
[346248895,1734815449918,-500.0,0.00019854,2]
[346248896,1734815449929,-500.0,0.00019854,2]
[346248897,1734815449938,-674.43,0.00019854,2]
[346248898,1734815449947,-500.0,0.00019854,2]
[346248899,1734815449958,-500.0,0.00019854,2]
[346248900,1734815449968,-500.0,0.00019854,2]
[346248901,1734815449977,-167.56,0.00019854,2]
[346248902,1734815449987,-500.0,0.00019854,2]
[346248903,1734815449996,-500.0,0.00019854,2]
[346248904,1734815450005,-500.0,0.00019854,2]
[346248905,1734815450014,-500.0,0.00019854,2]
[346248906,1734815450023,-500.0,0.00019854,2]
[346248907,1734815450033,-500.0,0.00019854,2]
[346248908,1734815450042,-500.0,0.00019854,2]
[346248909,1734815450052,-500.0,0.00019854,2]
[346248910,1734815450062,-500.0,0.00019854,2]
[346248911,1734815450071,-500.0,0.00019854,2]
[346248912,1734815450080,-500.0,0.00019854,2]
[346248913,1734815450090,-500.0,0.00019854,2]
[346248914,1734815450099,-500.0,0.00019854,2]
[346248915,1734815450108,-300.50565138,0.00019854,2]
[346248916,1734815450117,-500.0,0.00019854,2]
[346248917,1734815450127,-500.0,0.00019854,2]
[346248918,1734815450135,-500.0,0.00019854,2]
[346248919,1734815450145,-500.0,0.00019854,2]
[346248920,1734815450154,-500.0,0.00019854,2]
[346248921,1734815450163,-500.0,0.00019854,2]
[346248922,1734815450172,-500.0,0.00019854,2]
[346248923,1734815450182,-500.0,0.00019854,2]
[346248924,1734815450191,-500.0,0.00019854,2]
[346248925,1734815450201,-500.0,0.00019854,2]
[346248926,1734815450211,-500.0,0.00019854,2]
[346248927,1734815450221,-500.0,0.00019854,2]
[346248928,1734815450230,-500.0,0.00019854,2]
[346248929,1734815450240,-503.6613251,0.00019854,2]
[346248930,1734815450249,-500.0,0.00019854,2]
[346248931,1734815450259,-500.0,0.00019854,2]
[346248932,1734815450269,-500.0,0.00019854,2]
[346248933,1734815450279,-500.0,0.00019854,2]
[346248934,1734815450288,-500.0,0.00019854,2]
[346248935,1734815450298,-500.0,0.00019854,2]
[346248936,1734815450307,-500.0,0.00019854,2]
[346248937,1734815450317,-500.0,0.00019854,2]
[346248938,1734815450326,-500.0,0.00019854,2]
[346248939,1734815450336,-500.0,0.00019854,2]
[346248940,1734815450346,-500.0,0.00019854,2]
[346248941,1734815450355,-500.0,0.00019854,2]
[346248942,1734815450365,-500.0,0.00019854,2]
[346248943,1734815450375,-500.0,0.00019854,2]
[346248944,1734815450384,-180.88045284,0.00019854,2]
[346248945,1734815450393,-546.4,0.00019854,2]
[346248946,1734815450402,-394.82718998,0.00019854,2]
[346248947,1734815450411,-500.0,0.00019854,2]
[346248948,1734815450421,-500.0,0.00019854,2]
[346248949,1734815450430,-500.0,0.00019854,2]
[346248950,1734815450439,-500.0,0.00019854,2]
[346248951,1734815450449,-393.87271357,0.00019854,2]
[346248952,1734815450458,-500.0,0.00019854,2]
[346248953,1734815450467,-500.0,0.00019854,2]
[346248954,1734815450477,-500.0,0.00019854,2]
[346248955,1734815450486,-500.0,0.00019854,2]
[346248956,1734815450495,-500.0,0.00019854,2]
[346248957,1734815450505,-500.0,0.00019854,2]
[346248958,1734815450515,-500.0,0.00019854,2]
[346248959,1734815450525,-500.0,0.00019854,2]
[346248960,1734815450535,-500.0,0.00019854,2]
[346248961,1734815450544,-500.0,0.00019854,2]
[346248962,1734815450553,-500.0,0.00019854,2]
[346248963,1734815450562,-500.0,0.00019854,2]
[346248964,1734815450572,-500.0,0.00019854,2]
[346248965,1734815450581,-500.0,0.00019854,2]
[346248966,1734815450591,-500.0,0.00019854,2]
[346248967,1734815450600,-343.66554322,0.00019854,2]
[346248968,1734815450610,-500.0,0.00019854,2]
[346248969,1734815450619,-500.0,0.00019854,2]
[346248970,1734815450629,-500.0,0.00019854,2]
[346248971,1734815450639,-500.0,0.00019854,2]
[346248972,1734815450648,-500.0,0.00019854,2]
[346248973,1734815450658,-500.0,0.00019854,2]
[346248974,1734815450667,-518.45,0.00019854,2]
[346248975,1734815450676,-500.0,0.00019854,2]
[346248976,1734815450685,-500.0,0.00019854,2]
[346248977,1734815450695,-500.0,0.00019854,2]
[346248978,1734815450705,-500.0,0.00019854,2]
[346248979,1734815450714,-500.0,0.00019854,2]
[346248980,1734815450724,-500.0,0.00019854,2]
[346248981,1734815450733,-500.0,0.00019854,2]
[346248982,1734815450742,-500.0,0.00019854,2]
[346248983,1734815450752,-500.0,0.00019855,2]
[346248984,1734815450761,-500.0,0.00019855,2]
[346248985,1734815450770,-500.0,0.00019855,2]
[346248986,1734815450780,-498.75217585,0.00019855,2]
[346248987,1734815450789,-1469.0,0.00019856,2]
[346248988,1734815450799,-54097.67945584,0.00019856,2]
[346248989,1734815450818,-70518.74314994,0.00019856,2]
[346248990,1734815450834,-479999.16046007,0.00019856,2]
[346248991,1734815547647,450.0,0.00013,2]
[346248992,1734815561299,165.37,0.00010137,2]
[346248995,1734816014740,150.91,0.00018787,30]
[346248996,1734816021954,-183.99135154,0.0002,120]
[346248998,1734816342148,-500.0,0.00014376,2]
[346248999,1734816342172,-166.86,0.00015186,2]
[346249000,1734816342194,-175.8,0.00016712,2]
[346249001,1734816342216,-664.24,0.00017049,2]
[346249002,1734816342238,-503.19846083,0.00017116,2]
[346249003,1734816342261,-500.0,0.00017117,2]
[346249004,1734816342285,-234.68612663,0.00017217,2]
[346249005,1734816342309,-500.0,0.00017664,2]
[346249006,1734816342338,-573.66846894,0.00017664,2]
[346249007,1734816342362,-102.19990229,0.0001854,2]
[346249008,1734816445740,165.78,0.00010137,2]
[346249012,1734816552113,-648.92080719,0.00016599,2]
[346249017,1734816632390,-14.61919281,0.00016599,2]
[346249018,1734816632399,-369.06746648,0.00017664,2]
[346249019,1734816632411,-130.93253352,0.00017664,2]
[346249020,1734816632420,-250.0,0.00018517,2]
[346249021,1734816632430,-61.58009771,0.0001854,2]
[346249022,1734816632439,-200.0,0.0001854,2]
[346249023,1734816632448,-85.69833009,0.00018552,2]
[346249024,1734816632503,-78.08166991,0.00018552,2]
[346249025,1734816632512,-163.78,0.00018563,2]
[346249026,1734816632522,-61.18107986,0.00018568,2]
[346249027,1734816632619,-11287.75660762,0.00018568,2]
[346249080,1734816638356,-63207.4061154,0.00018568,2]
[346249081,1734816638366,-163.78,0.00018575,2]
[346249082,1734816638375,-163.78,0.00018587,2]
[346249083,1734816638384,-163.78,0.00018598,2]
[346249084,1734816638393,-384.59,0.000186,2]
[346249085,1734816638403,-163.78,0.0001861,2]
[346249086,1734816638412,-708.98,0.00018618,2]
[346249087,1734816638421,-163.78,0.00018621,2]
[346249088,1734816638430,-163.78,0.00018633,2]
[346249089,1734816638439,-150.0,0.00018683,2]
[346249090,1734816638447,-5519.58,0.00018708,2]
[346249091,1734816638457,-1000.0,0.0001884,2]
[346249092,1734816638466,-663.54,0.00018863,2]
[346249093,1734816638476,-250.0,0.0001887,2]
[346249094,1734816638485,-518.451,0.0001887,2]
[346249095,1734816638494,-198.55,0.00018994,2]
[346249096,1734816638503,-300.0,0.00019014,2]
[346249097,1734816638512,-436.91,0.000191,2]
[346249098,1734816638521,-436.91,0.000191,2]
[346249099,1734816638530,-436.91,0.000191,2]
[346249100,1734816638539,-436.91,0.000191,2]
[346249101,1734816638548,-408.27,0.000191,2]
[346249102,1734816638562,-1000.0,0.000196,2]
[346249103,1734816638571,-1000.0,0.00019702,2]
[346249104,1734816638580,-13971.9848,0.00019753,2]
[346249105,1734816638589,-812.89126548,0.00019753,2]
[346249106,1734816638599,-194.10767517,0.00019755,2]
[346249107,1734816638609,-812.89126543,0.00019769,2]
[346249108,1734816638619,-194.10767517,0.00019771,2]
[346249109,1734816638628,-20493.63758437,0.0001978,2]
[346249110,1734816638641,-363.60613795,0.0001978,2]
[346249111,1734816638677,-10441.17998013,0.0001978,2]
[346249112,1734816638688,-2514.10105974,0.0001978,2]
[346249114,1734816638728,-3952.58496,0.0001978,2]
[346249121,1734816640582,-1935.0,0.0001978,2]
[346249122,1734816640752,-259.73656295,0.0001978,2]
[346249138,1734816643709,-854.55749319,0.0001978,2]
[346249139,1734816643828,-361.80382483,0.0001978,2]
[346249140,1734816643892,-8377.79999621,0.0001978,2]
[346249141,1734816643904,-2494.99999999,0.0001978,2]
[346249142,1734816643915,-1685.0,0.0001978,2]
[346249146,1734817323559,205.4,0.00010137,2]
[346249147,1734817349949,450.0,0.00013,2]
[346249148,1734817456395,6662.39645723,0.0002,120]
[346249149,1734817465406,6363.05976155,0.0002,120]
[346249172,1734817831649,-254.46,0.00015,2]
[346249173,1734817831705,-245.54,0.00015,2]
[346249174,1734817831717,-2373.97611742,0.00016142,2]
[346249175,1734817831727,-909.41,0.00016242,2]
[346249176,1734817831736,-205.4,0.00016813,2]
[346249177,1734817831746,-25.71651563,0.000169,2]
[346249178,1734817831758,-171.34628668,0.000169,2]
[346249179,1734817831767,-548.33447334,0.00017,2]
[346249180,1734817831778,-1.66552666,0.00017,2]
[346249181,1734817831787,-1013.9,0.00017555,2]
[346249182,1734817831796,-150.0,0.00017644,2]
[346249183,1734817831806,-500.0,0.00017664,2]
[346249184,1734817831815,-621.91049946,0.00017664,2]
[346249185,1734817831824,-500.0,0.00017664,2]
[346249186,1734817831833,-250.0,0.00017933,2]
[346249187,1734817831842,-56.92477984,0.00017948,2]
[346249188,1734817831853,-243.07522016,0.00017948,2]
[346249189,1734817831862,-12469.90723403,0.00017949,2]
[346249190,1734817831895,-1392.25031245,0.00017949,2]
[346249191,1734817831948,-409.8822205,0.00017949,2]
[346249192,1734817831960,-6737.37067668,0.00017949,2]
[346249193,1734817831971,-334.08375,0.00017949,2]
[346249204,1734817837543,-577.56498034,0.00017949,2]
[346249205,1734817837559,-1978.940826,0.00017949,2]
[346249206,1734817837570,-150.0,0.00018,2]
[346249207,1734817837579,-150.0,0.00018,2]
[346249208,1734817837589,-150.0,0.00018,2]
[346249209,1734817837598,-1594.959174,0.00018028,2]
[346249210,1734817837711,-4827.74473643,0.00018028,2]
[346249211,1734817837827,-729.71598957,0.00018028,2]
[346249212,1734817837836,-246.64,0.00018029,2]
[346249213,1734817837846,-95.99401043,0.00018054,2]
[346249214,1734817837887,-696.68598957,0.00018054,2]
[346249215,1734817837898,-250.0,0.00018078,2]
[346249216,1734817837907,-1683.74401043,0.00018079,2]
[346249217,1734817837918,-270.02598957,0.00018079,2]
[346249218,1734817837927,-1329.87449324,0.00018126,2]
[346249219,1734817837936,-300.0,0.00018128,2]
[346249220,1734817837945,-1830.54,0.00018191,2]
[346249222,1734817837955,-1500.0,0.00018226,2]
[346249224,1734817837965,-250.0,0.00018358,2]
[346249226,1734817837974,-2328.49,0.00018412,2]
[346249228,1734817837984,-1329.87449321,0.00018481,2]
[346249230,1734817837993,-909.41,0.00018506,2]
[346249232,1734817838002,-741.33,0.00018551,2]
[346249234,1734817838011,-500.0,0.0001876,2]
[346249236,1734817838020,-109.53507825,0.00018823,2]
[346249249,1734817839604,-49.21492175,0.00018823,2]
[346249250,1734817839615,-382.1,0.00018829,2]
[346249251,1734817839624,-1067.31,0.00018829,2]
[346249252,1734817839635,-1329.87449321,0.00018836,2]
[346249253,1734817839645,-470.91,0.00018847,2]
[346249254,1734817839655,-1000.0,0.00018847,2]
[346249255,1734817839664,-541.295,0.0001887,2]
[346249256,1734817839675,-114.13110868,0.00018931,2]
[346249257,1734817839687,-132.50889132,0.00018931,2]
[346249258,1734817839696,-600.0,0.00019,2]
[346249259,1734817839705,-300.0,0.00019014,2]
[346249260,1734817839716,-150.91,0.00019049,30]
[346249261,1734817839726,-304.43,0.00019078,2]
[346249262,1734817839735,-300.0,0.00019078,2]
[346249263,1734817839743,-356.45288422,0.00019153,2]
[346249264,1734817839755,-80.45711578,0.00019153,2]
[346249265,1734817839765,-1329.87449321,0.0001919,2]
[346249266,1734817839775,-197.06280231,0.00019339,2]
[346249267,1734817839785,-50295.0,0.0001935,2]
[346249268,1734817839794,-150.0,0.00019439,2]
[346249269,1734817839803,-150.0,0.00019439,2]
[346249270,1734817839812,-150.0,0.00019439,2]
[346249271,1734817839821,-150.0,0.00019439,2]
[346249272,1734817839830,-365.07,0.00019439,2]
[346249273,1734817839839,-364.14,0.00019439,2]
[346249274,1734817839848,-365.07,0.00019439,2]
[346249275,1734817839857,-365.07,0.00019439,2]
[346249276,1734817839866,-365.07,0.00019439,2]
[346249277,1734817839875,-364.93,0.00019439,2]
[346249278,1734817839884,-1329.87449321,0.00019545,2]
[346249279,1734817839894,-420.0,0.00019584,2]
[346249280,1734817839903,-42428.42856636,0.0001959,2]
[346249281,1734817839912,-300.0,0.00019592,2]
[346249282,1734817839921,-177.87,0.000196,2]
[346249283,1734817839931,-874.43421986,0.00019641,2]
[346249284,1734817839940,-874.43421982,0.00019641,2]
[346249285,1734817839949,-874.43421982,0.00019641,2]
[346249286,1734817839958,-874.43421982,0.00019641,2]
[346249287,1734817839967,-874.43421982,0.00019641,2]
[346249288,1734817839976,-874.43421982,0.00019642,2]
[346249289,1734817839985,-2500.0,0.00019642,2]
[346249290,1734817839993,-4755826.02558375,0.00019642,3]
[346249291,1734817840016,-814.6,0.00019642,3]
[346249292,1734817840027,-216737.52861187,0.00019642,3]
[346249293,1734817840049,-640.6299894,0.00019642,3]
[346249301,1734817843383,-472.49999847,0.00019642,3]
[346249306,1734817843672,-433222.15030855,0.00019642,3]
[346249307,1734817843682,-173.35922363,0.00019642,3]
[346249308,1734817843691,-874.43421982,0.00019642,2]
[346249309,1734817843701,-874.43421982,0.00019642,2]
[346249310,1734817843711,-874.43421982,0.00019642,2]
[346249311,1734817843722,-171.67385756,0.00019642,2]
[346249312,1734817843733,-2198.2586523,0.00019642,2]
[346249313,1734817843742,-222.66472991,0.00019642,2]
[346249314,1734817843751,-874.43421982,0.00019642,2]
[346249315,1734817843760,-1373.52,0.00019732,2]
[346249316,1734817843769,-156.94,0.00019732,2]
[346249317,1734817843779,-156.94,0.00019732,2]
[346249318,1734817843788,-156.94,0.00019732,2]
[346249319,1734817843798,-1373.52,0.00019732,2]
[346249320,1734817843807,-156.94,0.00019732,2]
[346249321,1734817843817,-156.94,0.00019732,2]
[346249322,1734817843827,-1373.52,0.00019732,2]
[346249323,1734817843836,-156.94,0.00019732,2]
[346249324,1734817843845,-156.94,0.00019732,2]
[346249325,1734817843855,-1373.52,0.00019732,2]
[346249331,1734817844049,-156.94,0.00019732,2]
[346249332,1734817844059,-156.94,0.00019732,2]
[346249333,1734817844068,-1373.52,0.00019732,2]
[346249334,1734817844078,-156.94,0.00019732,2]
[346249335,1734817844087,-156.94,0.00019732,2]
[346249336,1734817844096,-156.94,0.00019732,2]
[346249337,1734817844106,-1850.9,0.00019741,2]
[346249338,1734817844115,-500.0,0.00019741,2]
[346249339,1734817844125,-1209.19,0.00019741,2]
[346249340,1734817844134,-6820.59,0.00019741,2]
[346249341,1734817844144,-500.0,0.00019741,2]
[346249342,1734817844153,-1251.13,0.00019741,2]
[346249343,1734817844162,-500.0,0.00019741,2]
[346249344,1734817844171,-2330.96,0.00019741,2]
[346249345,1734817844180,-4665.91,0.00019741,2]
[346249346,1734817844190,-1283.91,0.00019741,2]
[346249347,1734817844199,-677.38,0.00019741,2]
[346249348,1734817844208,-15489.12,0.00019741,2]
[346249349,1734817844219,-1020.22,0.00019741,2]
[346249350,1734817844228,-553.41,0.00019741,2]
[346249351,1734817844237,-1403.53,0.00019741,2]
[346249352,1734817844247,-9740.99,0.00019741,2]
[346249353,1734817844255,-500.0,0.00019741,2]
[346249354,1734817844264,-500.0,0.00019741,2]
[346249355,1734817844272,-4267.05,0.00019741,2]
[346249356,1734817844281,-500.0,0.00019741,2]
[346249357,1734817844290,-500.0,0.00019741,2]
[346249358,1734817844300,-500.0,0.00019741,2]
[346249359,1734817844309,-550.96,0.00019741,2]
[346249360,1734817844318,-1144.84,0.00019741,2]
[346249361,1734817844328,-1191.67,0.00019741,2]
[346249362,1734817844337,-1080.13,0.00019741,2]
[346249363,1734817844347,-500.0,0.00019741,2]
[346249364,1734817844357,-500.0,0.00019741,2]
[346249365,1734817844366,-762.58,0.00019741,2]
[346249366,1734817844376,-500.0,0.00019741,2]
[346249367,1734817844386,-500.0,0.00019742,2]
[346249368,1734817844397,-500.0,0.00019742,2]
[346249369,1734817844406,-500.0,0.00019742,2]
[346249370,1734817844415,-500.0,0.00019742,2]
[346249371,1734817844424,-500.0,0.00019742,2]
[346249372,1734817844434,-500.0,0.00019742,2]
[346249373,1734817844444,-500.0,0.00019742,2]
[346249374,1734817844454,-500.0,0.00019742,2]
[346249375,1734817844463,-500.0,0.00019742,2]
[346249376,1734817844474,-500.0,0.00019742,2]
[346249377,1734817844483,-500.0,0.00019742,2]
[346249378,1734817844493,-500.0,0.00019742,2]
[346249379,1734817844502,-500.0,0.00019742,2]
[346249380,1734817844511,-500.0,0.00019742,2]
[346249381,1734817844522,-500.0,0.00019742,2]
[346249382,1734817844530,-500.0,0.00019742,2]
[346249383,1734817844542,-500.0,0.00019742,2]
[346249384,1734817844555,-500.0,0.00019742,2]
[346249385,1734817844565,-500.0,0.00019742,2]
[346249386,1734817844575,-500.0,0.00019742,2]
[346249387,1734817844584,-500.0,0.00019742,2]
[346249388,1734817844600,-500.0,0.00019742,2]
[346249389,1734817844610,-500.0,0.00019742,2]
[346249390,1734817844620,-500.0,0.00019742,2]
[346249391,1734817844632,-500.0,0.00019742,2]
[346249392,1734817844642,-500.0,0.00019742,2]
[346249393,1734817844653,-500.0,0.00019742,2]
[346249394,1734817844662,-500.0,0.00019742,2]
[346249395,1734817844673,-500.0,0.00019742,2]
[346249396,1734817844683,-500.0,0.00019742,2]
[346249397,1734817844692,-500.0,0.00019742,2]
[346249398,1734817844701,-500.0,0.00019742,2]
[346249399,1734817844711,-500.0,0.00019742,2]
[346249400,1734817844722,-502.85928324,0.00019742,2]
[346249401,1734817844732,-500.0,0.00019742,2]
[346249402,1734817844741,-500.0,0.00019742,2]
[346249403,1734817844750,-500.0,0.00019742,2]
[346249404,1734817844759,-500.0,0.00019742,2]
[346249405,1734817844770,-500.0,0.00019742,2]
[346249406,1734817844779,-500.0,0.00019742,2]
[346249407,1734817844789,-500.0,0.00019742,2]
[346249408,1734817844798,-500.0,0.00019742,2]
[346249409,1734817844808,-500.0,0.00019742,2]
[346249410,1734817844817,-500.0,0.00019742,2]
[346249411,1734817844826,-500.0,0.00019742,2]
[346249412,1734817844835,-500.0,0.00019742,2]
[346249413,1734817844845,-500.0,0.00019742,2]
[346249414,1734817844854,-500.0,0.00019742,2]
[346249415,1734817844864,-500.0,0.00019742,2]
[346249416,1734817844874,-500.0,0.00019742,2]
[346249417,1734817844883,-9682.72,0.00019742,2]
[346249418,1734817844892,-500.0,0.00019742,2]
[346249419,1734817844901,-1988.770409,0.00019742,2]
[346249420,1734817844910,-500.0,0.00019742,2]
[346249421,1734817844920,-500.0,0.00019742,2]
[346249422,1734817844929,-522.69,0.00019742,2]
[346249423,1734817844938,-500.0,0.00019742,2]
[346249424,1734817844948,-500.0,0.00019742,2]
[346249425,1734817844957,-9740.69,0.00019742,2]
[346249426,1734817844967,-2851.1,0.00019742,2]
[346249427,1734817844976,-884.375498,0.00019742,2]
[346249428,1734817844986,-500.0,0.00019742,2]